bitfinex/quotes_SOLUSD_20240705
["timestamp","ask_amount","ask_price","bid_price","bid_amount"]
[1720185895967,6.42e-05,131.29,131.26,19.0457]
[1720185896173,6.42e-05,131.29,131.28,7.6173]
[1720185896697,6.42e-05,131.29,131.28,26.6605]
[1720185901282,16.2046937,131.39,131.38,26.6402]
[1720185901283,0.9318937,131.39,131.38,26.6402]
[1720185901680,9.37e-05,131.39,131.38,126.6402]
[1720185901867,9.37e-05,131.39,131.38,149.5502]
[1720185902376,9.37e-05,131.39,131.38,126.6402]
[1720185902775,9.37e-05,131.39,131.38,149.5502]
[1720185902981,9.37e-05,131.39,131.38,126.6402]
[1720185903482,0.0452665,131.42,131.41,7.6097]
[1720185903876,0.0452665,131.42,131.41,26.6341]
[1720185904193,6.65e-05,131.42,131.41,26.6341]
[1720185905569,6.65e-05,131.42,131.38,100.0]
[1720185905570,7.6041,131.51,131.45,7.6072]
[1720185905763,7.605,131.5,131.45,19.0184]
[1720185906178,7.6041,131.51,131.45,26.6258]
[1720185906468,0.17,131.5,131.45,26.6256]
[1720185906667,7.7748,131.5,131.45,19.0184]
[1720185906877,7.6052,131.49,131.43,7.6084]
[1720185907078,0.17,131.48,131.39,19.0264]
[1720185907288,6.66686334,131.52,131.39,122.91]
[1720185907494,6.66686334,131.52,131.35,106.3477]
[1720185907992,7.6064,131.47,131.41,19.0239]
[1720185908167,6.421,131.47,131.41,19.0239]
[1720185908690,0.17,131.46,131.42,7.6091]
[1720185909488,16.4097,131.46,131.33,15.6983]
[1720185909679,7.6104,131.4,131.31,6.1099]
[1720185910001,16.4097,131.46,131.35,19.0319]
[1720185910002,19.0188,131.45,131.35,19.0319]
[1720185910303,0.17,131.44,131.37,19.0297]
[1720185910468,0.17,131.44,131.41,7.6093]
[1720185910671,22.35700606,131.46,131.33,22.91]
[1720185910890,16.2397,131.46,131.42,7.6086]
[1720185911091,16.2397,131.46,131.41,7.6097]
[1720185911302,7.609,131.43,131.38,7.6113]
[1720185911507,7.609,131.43,131.3,100.0]
[1720185911508,31.2397,131.46,131.28,22.4884]
[1720185911803,7.6104,131.4,131.35,7.6132]
[1720185912195,1.77178626,131.45,131.44,7.608]
[1720185912373,7.6041,131.51,131.37,106.0708]
[1720185912571,6.53309515,131.52,131.44,19.0187]
[1720185912775,25.3632,131.51,131.41,19.0233]
[1720185912984,0.72377817,131.5,131.41,7.6096]
[1720185913203,0.72377817,131.5,131.37,6.0708]
[1720185913496,7.607,131.46,131.41,7.6096]
[1720185913705,7.607,131.46,131.4,19.0255]
[1720185913706,16.4205,131.47,131.4,19.0255]
[1720185913995,16.4205,131.47,131.36,7.6121]
[1720185913996,7.6093,131.42,131.36,7.6121]
[1720185914300,7.6093,131.42,131.27,19.0233]
[1720185914301,7.6108,131.4,131.34,26.6465]
[1720185914501,7.6108,131.4,131.35,7.6129]
[1720185914801,0.17,131.39,131.36,7.6126]
[1720185914997,0.17,131.4,131.36,26.6433]
[1720185915203,0.17,131.4,131.33,19.0351]
[1720185915379,0.17,131.4,131.35,7.6126]
[1720185915907,7.7807,131.4,131.35,7.6126]
[1720185916084,0.17,131.4,131.27,22.91]
[1720185916422,6.18857637,131.43,131.25,74.5908]
[1720185916423,7.6086,131.43,131.38,7.6113]
[1720185916612,24.0286,131.44,131.38,7.6113]
[1720185916818,16.4205,131.44,131.39,26.6376]
[1720185917109,24.0286,131.44,131.39,26.6376]
[1720185917290,16.4205,131.44,131.39,26.6376]
[1720185917492,16.4205,131.44,131.36,19.0304]
[1720185917800,16.4205,131.44,131.33,19.0348]
[1720185917989,7.6101,131.41,131.35,26.6454]
[1720185918193,35.4412,131.44,131.36,7.6122]
[1720185918387,7.6103,131.41,131.35,19.0326]
[1720185918702,0.17,131.4,131.35,26.6457]
[1720185919073,0.17,131.4,131.36,7.6125]
[1720185919787,0.17,131.4,131.37,7.612]
[1720185919984,0.17,131.41,131.37,19.0297]
[1720185920200,0.17,131.41,131.38,7.6112]
[1720185920400,16.4205,131.44,131.3,100.0]
[1720185920585,16.4205,131.44,131.35,19.0322]
[1720185920774,16.4205,131.44,131.3,100.0]
[1720185920980,7.6101,131.41,131.36,7.6126]
[1720185921383,7.6101,131.41,131.36,7.6121]
[1720185921589,7.6104,131.4,131.36,19.0314]
[1720185921900,0.17,131.39,131.33,19.0346]
[1720185922101,7.6115,131.38,131.33,26.6486]
[1720185922402,0.17,131.37,131.33,19.0346]
[1720185922602,0.17,131.37,131.33,26.6486]
[1720185923096,0.17,131.37,131.34,7.6138]
[1720185923279,7.6111,131.39,131.34,7.6138]
[1720185923686,15.6897,131.39,131.3,19.0392]
[1720185923917,15.6897,131.39,131.3,26.6549]
[1720185923918,7.6137,131.35,131.3,26.6549]
[1720185924108,7.6137,131.35,131.3,19.0392]
[1720185924489,6.291,131.38,131.3,19.0392]
[1720185924802,6.291,131.38,131.31,7.6153]
[1720185924803,7.613,131.36,131.31,7.6153]
[1720185925000,7.6134,131.35,131.3,26.6552]
[1720185925305,0.17,131.34,131.31,7.6154]
[1720185925516,0.17,131.35,131.31,7.6154]
[1720185925803,0.17,131.35,131.27,19.0439]
[1720185926111,0.17,131.36,131.29,19.0414]
[1720185926292,6.291,131.38,131.25,6.0708]
[1720185926605,6.291,131.38,131.33,19.0347]
[1720185926906,6.291,131.38,131.34,7.6136]
[1720185927289,13.9025,131.38,131.33,26.6489]
[1720185927605,13.9025,131.38,131.34,7.6137]
[1720185927606,6.291,131.38,131.34,7.6137]
[1720185927989,6.291,131.38,131.3,19.0393]
[1720185928187,7.6128,131.36,131.31,7.6152]
[1720185928395,6.291,131.38,131.3,19.0393]
[1720185928709,7.6131,131.36,131.31,7.6155]
[1720185929090,6.291,131.38,131.3,19.0393]
[1720185929091,7.6123,131.37,131.32,7.6149]
[1720185929297,0.17,131.36,131.32,7.6149]
[1720185929889,23.3009,131.39,131.34,7.6136]
[1720185930103,23.3009,131.39,131.34,19.0344]
[1720185930404,13.96967615,131.4,131.36,19.0314]
[1720185930607,6.0461,131.44,131.38,19.0283]
[1720185930794,32.4007,131.47,131.33,122.91]
[1720185930795,22.02285618,131.47,131.33,122.91]
[1720185931000,29.62945618,131.47,131.42,7.6091]
[1720185931199,7.6069,131.46,131.41,7.6096]
[1720185931499,29.62925618,131.47,131.42,7.6091]
[1720185931813,15.9802,131.47,131.45,7.6073]
[1720185932014,6.0461,131.48,131.44,26.6274]
[1720185932188,6.0461,131.48,131.33,122.91]
[1720185932395,7.6066,131.47,131.41,19.0232]
[1720185932595,7.6068,131.46,131.41,26.6328]
[1720185932804,13.652,131.48,131.42,7.6087]
[1720185933191,13.652,131.48,131.43,7.6085]
[1720185933404,6.0461,131.48,131.43,26.6298]
[1720185934008,13.6518,131.48,131.43,26.6298]
[1720185934311,13.6518,131.48,131.43,19.0213]
[1720185934496,7.6063,131.47,131.43,19.0213]
[1720185934813,7.6063,131.47,131.42,7.6089]
[1720185935009,13.652,131.48,131.43,7.6085]
[1720185935210,6.0461,131.48,131.34,122.91]
[1720185935410,6.0461,131.48,131.44,19.0194]
[1720185935707,6.0461,131.48,131.45,7.6073]
[1720185936008,0.72377817,131.5,131.48,7.6055]
[1720185936216,0.72377817,131.5,131.47,7.606]
[1720185936614,0.72377817,131.5,131.48,7.6054]
[1720185936816,0.72377817,131.5,131.49,7.6051]
[1720185938289,0.1,131.59,131.51,7.6039]
[1720185938496,0.1,131.59,131.51,26.6138]
[1720185939115,0.1,131.59,131.44,6.0781]
[1720185939423,7.6027,131.54,131.48,7.6055]
[1720185939592,8.0565266,131.52,131.46,7.6067]
[1720185939794,0.4530266,131.52,131.47,7.6061]
[1720185940001,0.4530266,131.52,131.46,19.0167]
[1720185940202,0.17,131.51,131.46,19.0167]
[1720185940408,0.4530266,131.52,131.48,19.0137]
[1720185940605,0.4530266,131.52,131.49,7.6049]
[1720185941014,0.4530266,131.52,131.51,7.6039]
[1720185941710,0.4530266,131.52,131.48,7.6053]
[1720185941925,0.4530266,131.52,131.49,7.6049]
[1720185942303,0.4530266,131.52,131.49,19.0114]
[1720185942815,7.6043,131.51,131.46,26.6227]
[1720185943010,7.6049,131.5,131.45,7.6073]
[1720185943413,7.6041,131.51,131.46,7.6066]
[1720185943606,0.17,131.5,131.46,7.6066]
[1720185943806,7.775,131.5,131.45,26.6257]
[1720185944008,0.17,131.5,131.39,6.6293]
[1720185944310,0.17,131.51,131.42,19.0222]
[1720185944719,19.0118,131.5,131.39,6.6293]
[1720185944923,0.17,131.49,131.39,6.6293]
[1720185945125,0.17,131.51,131.43,19.0213]
[1720185945432,7.6041,131.51,131.46,7.6064]
[1720185945634,16.9244266,131.52,131.47,7.6058]
[1720185945929,7.6041,131.51,131.46,7.6068]
[1720185946143,16.9244266,131.52,131.39,6.6293]
[1720185946320,24.5279266,131.52,131.47,7.6058]
[1720185946707,7.604,131.51,131.46,26.6236]
[1720185946937,7.6046,131.5,131.45,7.6073]
[1720185947143,0.17,131.49,131.45,7.6073]
[1720185947319,7.7755,131.49,131.43,26.6287]
[1720185947505,7.7755,131.49,131.43,19.0205]
[1720185947710,7.7755,131.49,131.44,7.6079]
[1720185948132,24.87689452,131.52,131.4,22.91]
[1720185948439,24.5281266,131.52,131.47,26.6217]
[1720185948944,0.4530266,131.52,131.49,19.0123]
[1720185949110,0.4530266,131.52,131.51,7.6039]
[1720185949938,0.4530266,131.52,131.49,26.6172]
[1720185950446,0.4530266,131.52,131.49,19.0123]
[1720185950832,0.4530266,131.52,131.49,26.6173]
[1720185951144,7.6024,131.54,131.49,26.6173]
[1720185951145,0.17,131.53,131.49,26.6173]
[1720185951346,0.6750583,131.53,131.49,26.6173]
[1720185952228,0.6750583,131.53,131.5,7.6041]
[1720185952433,0.5050583,131.53,131.52,7.6034]
[1720185952637,0.5050583,131.53,131.42,22.91]
[1720185952638,0.5050583,131.53,131.48,19.013]
[1720185952946,0.5050583,131.53,131.49,7.6048]
[1720185953127,0.5050583,131.53,131.49,7.6049]
[1720185953730,0.5050583,131.53,131.48,19.013]
[1720185953731,0.17,131.52,131.48,19.013]
[1720185953936,7.7734,131.52,131.48,19.013]
[1720185954242,0.17,131.52,131.48,19.013]
[1720185954446,0.17,131.52,131.49,7.6046]
[1720185954948,0.17,131.52,131.49,7.6051]
[1720185955151,0.17,131.52,131.5,19.0108]
[1720185955448,0.17,131.52,131.51,7.6039]
[1720185956546,0.5050583,131.53,131.52,7.6034]
[1720185957048,0.5050583,131.53,131.52,26.6119]
[1720185962138,5.83e-05,131.53,131.52,26.6119]
[1720185963333,5.83e-05,131.53,131.44,116.1217]
[1720185963334,5.83e-05,131.53,131.51,7.6039]
[1720185963656,5.83e-05,131.53,131.49,26.6178]
[1720185963837,5.83e-05,131.53,131.47,7.6059]
[1720185964031,5.83e-05,131.53,131.45,7.6069]
[1720185964236,7.6029583,131.53,131.49,19.0126]
[1720185964645,0.17,131.52,131.49,19.0126]
[1720185964833,7.6031583,131.53,131.48,7.6055]
[1720185965040,7.6043,131.51,131.46,26.6224]
[1720185965247,0.17,131.5,131.47,7.6062]
[1720185965846,0.17,131.51,131.47,7.6062]
[1720185966761,0.17,131.51,131.48,7.6056]
[1720185966948,0.17,131.52,131.5,7.6044]
[1720185967563,0.17,131.52,131.49,7.6049]
[1720185967757,5.83e-05,131.53,131.5,19.0107]
[1720185967947,5.83e-05,131.53,131.51,7.6034]
[1720185968269,5.83e-05,131.53,131.52,7.6034]
[1720185969651,5.83e-05,131.53,131.52,26.6119]
[1720185971366,5.83e-05,131.53,131.52,19.0085]
[1720185971672,5.83e-05,131.53,131.52,7.6034]
[1720185976248,5.83e-05,131.53,131.51,19.0096]
[1720185976498,5.83e-05,131.53,131.52,7.6034]
[1720185977868,5.83e-05,131.53,131.52,13.8976]
[1720185978070,5.83e-05,131.53,131.52,113.8976]
[1720185979079,5.83e-05,131.53,131.52,13.8976]
[1720185979448,5.83e-05,131.53,131.52,7.6034]
[1720185981059,5.83e-05,131.53,131.51,26.6134]
[1720185981254,5.83e-05,131.53,131.44,21.5659]
[1720185981255,7.6028583,131.53,131.48,7.6053]
[1720185981462,0.17,131.52,131.47,19.0156]
[1720185981845,7.6042,131.51,131.47,19.0156]
[1720185982049,7.7736,131.52,131.47,26.6218]
[1720185982249,0.17,131.52,131.44,7.6075]
[1720185982451,7.6055,131.49,131.44,26.6268]
[1720185982670,16.4836,131.51,131.44,26.6268]
[1720185982671,7.6047,131.5,131.44,26.6268]
[1720185982884,0.17,131.49,131.44,26.6268]
[1720185983254,7.6058,131.48,131.41,19.0233]
[1720185983456,0.17,131.47,131.41,19.0233]
[1720185983674,14.3011,131.47,131.42,7.6091]
[1720185983859,7.6071,131.46,131.41,26.6326]
[1720185984058,0.17,131.45,131.42,7.609]
[1720185984378,6.6947,131.47,131.42,7.609]
[1720185984558,6.6947,131.47,131.41,19.0233]
[1720185984559,6.6947,131.47,131.43,7.6084]
[1720185984881,14.301,131.47,131.42,7.6089]
[1720185985377,14.301,131.47,131.42,7.6091]
[1720185985378,6.6947,131.47,131.42,7.6091]
[1720185985588,6.6947,131.47,131.43,7.6084]
[1720185985754,14.301,131.47,131.42,7.609]
[1720185985953,14.301,131.47,131.41,26.6328]
[1720185986450,6.6947,131.47,131.38,19.0278]
[1720185986679,7.6073,131.46,131.38,19.0278]
[1720185986863,0.17,131.45,131.4,7.6098]
[1720185987049,0.17,131.45,131.32,145.431]
[1720185987253,0.17,131.45,131.32,122.521]
[1720185987485,0.17,131.46,131.33,22.91]
[1720185987655,7.6078,131.45,131.4,7.6101]
[1720185987867,0.17,131.44,131.4,7.6101]
[1720185988385,0.17,131.44,131.41,19.024]
[1720185988594,0.17,131.44,131.41,26.6337]
[1720185988892,14.47938796,131.47,131.41,19.024]
[1720185989090,14.47938796,131.47,131.41,26.6334]
[1720185989091,7.6069,131.46,131.41,26.6334]
[1720185989286,15.56161922,131.46,131.41,26.6334]
[1720185989486,7.95471922,131.46,131.33,143.78]
[1720185989674,6.5247,131.47,131.33,143.78]
[1720185989675,6.5247,131.47,131.33,100.0]
[1720185990011,7.6098,131.41,131.36,7.6125]
[1720185990310,7.6098,131.41,131.29,143.78]
[1720185990311,0.17,131.4,131.37,7.6119]
[1720185990663,0.17,131.4,131.37,26.6421]
[1720185990894,0.17,131.4,131.37,19.0302]
[1720185991191,0.17,131.4,131.36,7.6124]
[1720185991510,0.17,131.4,131.37,7.612]
[1720185991688,0.17,131.4,131.38,7.6114]
[1720185991900,0.17,131.4,131.38,19.0277]
[1720185992264,15.1675,131.45,131.35,19.032]
[1720185992265,7.78,131.41,131.35,19.032]
[1720185992470,7.78,131.41,131.36,7.6122]
[1720185992893,0.17,131.41,131.33,19.0359]
[1720185993205,7.6113,131.39,131.34,7.6133]
[1720185993394,0.17,131.38,131.34,7.6133]
[1720185993691,0.17,131.38,131.33,19.0359]
[1720185993692,0.17,131.38,131.35,7.6132]
[1720185993887,0.17,131.38,131.34,7.6135]
[1720185994075,0.17,131.38,131.34,7.6136]
[1720185994276,0.17,131.38,131.33,19.0359]
[1720185994482,0.17,131.38,131.35,7.6132]
[1720185994692,7.7809,131.39,131.34,7.6136]
[1720185995081,0.17,131.39,131.35,7.6132]
[1720185995276,0.17,131.39,131.36,7.6125]
[1720185995584,7.6093,131.42,131.37,7.612]
[1720185995980,7.6086,131.43,131.29,122.91]
[1720185996185,7.6086,131.43,131.38,7.6111]
[1720185997296,7.6106,131.4,131.35,7.6128]
[1720185997600,21.13870357,131.45,131.29,100.0]
[1720185997808,7.6101,131.41,131.36,7.6124]
[1720185998018,22.90034317,131.45,131.3,100.0]
[1720185998178,16.9291396,131.45,131.39,19.0268]
[1720185998485,16.9291396,131.45,131.42,26.6318]
[1720185998686,1.7616396,131.45,131.42,19.0228]
[1720185999204,1.7616396,131.45,131.43,7.6082]
[1720185999607,6.5247,131.47,131.45,7.6074]
[1720186000103,15.6032,131.49,131.46,19.0166]
[1720186000579,7.6057,131.48,131.43,26.6286]
[1720186000784,7.6059,131.48,131.43,26.6286]
[1720186001011,15.6032,131.49,131.43,19.0206]
[1720186001301,6.1477,131.55,131.52,7.6034]
[1720186001598,6.1477,131.55,131.51,26.6132]
[1720186002180,23.7584,131.57,131.51,26.6132]
[1720186002385,23.7584,131.57,131.52,7.6032]
[1720186002586,16.1577,131.57,131.45,6.3132]
[1720186002797,7.6028,131.53,131.48,7.6053]
[1720186003012,19.0031,131.56,131.48,19.0136]
[1720186003302,0.17,131.55,131.48,19.0136]
[1720186003501,7.6029,131.53,131.48,26.6193]
[1720186003711,0.17,131.52,131.48,26.619]
[1720186004012,0.17,131.52,131.46,7.6063]
[1720186004176,0.17,131.52,131.45,19.0174]
[1720186004177,0.17,131.52,131.47,7.6057]
[1720186004379,0.17,131.52,131.48,7.6056]
[1720186004786,0.17,131.52,131.41,29.0624]
[1720186004999,22.0954074,131.57,131.5,7.604]
[1720186005196,22.0954074,131.57,131.51,7.6038]
[1720186005399,22.0954074,131.57,131.51,19.0095]
[1720186005604,7.6018,131.55,131.51,19.0095]
[1720186006107,7.6024,131.54,131.49,7.6051]
[1720186006291,0.17,131.53,131.48,19.0131]
[1720186007108,0.17,131.53,131.5,19.011]
[1720186007303,0.17,131.53,131.5,26.6153]
[1720186007505,0.17,131.54,131.5,26.6153]
[1720186008304,0.17,131.54,131.52,19.0083]
[1720186008513,0.17,131.54,131.53,7.6028]
[1720186008693,16.1577,131.57,131.53,7.6024]
[1720186009004,7.6,131.58,131.45,122.91]
[1720186009005,14.19663098,131.59,131.47,100.0]
[1720186009179,14.19663098,131.59,131.45,22.91]
[1720186009180,13.8474,131.59,131.54,7.6018]
[1720186009383,13.8474,131.59,131.52,7.6031]
[1720186009384,7.6006,131.57,131.52,7.6031]
[1720186009686,7.6005,131.57,131.52,7.6033]
[1720186010190,6.2477,131.59,131.51,6.3035]
[1720186010191,0.1,131.59,131.51,6.3035]
[1720186010390,0.1,131.59,131.56,7.6008]
[1720186010715,0.1,131.59,131.58,7.5999]
[1720186012203,0.1,131.59,131.57,19.0008]
[1720186012510,0.1,131.59,131.57,26.6013]
[1720186012807,0.27,131.59,131.57,26.6012]
[1720186013006,0.1,131.59,131.57,19.0008]
[1720186013196,0.1,131.59,131.58,7.5999]
[1720186013682,0.1,131.59,131.57,26.6011]
[1720186013882,0.1,131.59,131.58,7.5999]
[1720186014307,0.1,131.59,131.54,19.0044]
[1720186014512,0.1,131.59,131.55,7.6014]
[1720186014717,0.1,131.59,131.53,7.6026]
[1720186014718,7.6,131.58,131.53,7.6026]
[1720186014917,0.17,131.57,131.48,6.6554]
[1720186015098,7.6012,131.56,131.51,7.6036]
[1720186015296,0.17,131.55,131.51,7.6036]
[1720186015611,0.17,131.55,131.52,19.0084]
[1720186015911,0.17,131.56,131.53,7.6027]
[1720186016219,0.17,131.57,131.53,7.6027]
[1720186016597,0.17,131.57,131.52,19.0084]
[1720186016913,7.7703,131.58,131.52,26.6116]
[1720186017089,7.7703,131.58,131.53,7.6026]
[1720186017290,0.17,131.58,131.54,7.6021]
[1720186017497,0.17,131.58,131.52,19.0084]
[1720186017695,7.6008,131.57,131.52,26.6117]
[1720186017916,22.312,131.59,131.54,19.0052]
[1720186018493,0.1,131.59,131.57,7.5999]
[1720186018708,0.1,131.59,131.58,7.5999]
[1720186019519,0.1,131.59,131.57,7.6002]
[1720186019809,0.1,131.59,131.55,7.6014]
[1720186020014,6.4875,131.57,131.46,19.0159]
[1720186020193,7.6047,131.5,131.44,7.6075]
[1720186020390,19.007,131.54,131.43,19.0202]
[1720186020592,6.4875,131.57,131.39,6.5229]
[1720186020795,19.0045,131.55,131.4,22.91]
[1720186020993,7.6041,131.51,131.46,7.6065]
[1720186021217,6.4875,131.57,131.53,7.6026]
[1720186021399,14.0882,131.57,131.52,26.6112]
[1720186021595,6.4875,131.57,131.52,19.0078]
[1720186021795,7.6011,131.56,131.51,7.6037]
[1720186022015,7.6017,131.55,131.51,7.6037]
[1720186022217,7.6012,131.56,131.51,7.6037]
[1720186022418,6.4875,131.57,131.52,7.6033]
[1720186022419,14.088,131.57,131.52,7.6033]
[1720186023714,7.6011,131.56,131.51,26.6133]
[1720186024297,0.17,131.55,131.51,26.6133]
[1720186024722,0.17,131.55,131.52,7.6033]
[1720186024921,0.17,131.56,131.53,19.0068]
[1720186025129,0.17,131.56,131.54,7.6022]
[1720186025304,0.17,131.57,131.55,19.004]
[1720186025511,0.17,131.58,131.55,19.004]
[1720186025704,0.17,131.58,131.47,29.2092]
[1720186025925,7.6009,131.57,131.52,7.6032]
[1720186026235,7.6009,131.57,131.48,7.6056]
[1720186026236,19.0016,131.57,131.48,7.6056]
[1720186026411,7.6034,131.53,131.49,7.605]
[1720186026610,7.6034,131.52,131.45,15.2107]
[1720186026825,7.6034,131.52,131.47,7.6059]
[1720186027029,7.6034,131.52,131.48,19.0142]
[1720186027201,0.17,131.51,131.47,7.6059]
[1720186027401,0.17,131.51,131.41,39.5141]
[1720186027402,0.17,131.51,131.41,16.6641]
[1720186027625,7.7745,131.51,131.46,7.6065]
[1720186027815,7.6046,131.5,131.46,7.6065]
[1720186028126,7.7751,131.49,131.45,26.6258]
[1720186028341,0.17,131.48,131.41,16.6641]
[1720186028505,0.17,131.48,131.46,7.6067]
[1720186028705,6.3198,131.52,131.47,7.606]
[1720186028909,0.17,131.51,131.48,7.6056]
[1720186029108,0.17,131.51,131.48,19.0142]
[1720186029323,0.17,131.51,131.48,26.6198]
[1720186029820,7.774,131.51,131.46,19.0171]
[1720186030129,0.17,131.51,131.48,7.6053]
[1720186030507,0.17,131.52,131.48,7.6053]
[1720186030703,7.7734,131.52,131.48,7.6053]
[1720186030903,0.17,131.52,131.48,19.0131]
[1720186031127,0.17,131.52,131.49,7.605]
[1720186031638,0.17,131.52,131.39,106.2777]
[1720186031639,7.6063,131.47,131.42,7.6088]
[1720186031933,0.17,131.48,131.44,7.6078]
[1720186032117,0.17,131.48,131.43,7.6084]
[1720186032118,7.7758,131.48,131.43,7.6084]
[1720186032430,16.301,131.53,131.46,7.6068]
[1720186032618,0.17,131.52,131.46,7.6068]
[1720186032932,7.6041,131.51,131.46,26.6238]
[1720186033231,7.6046,131.5,131.46,26.6238]
[1720186033433,7.7746,131.5,131.46,19.017]
[1720186033629,7.6046,131.5,131.46,19.017]
[1720186033834,7.7753,131.49,131.44,7.6077]
[1720186034013,7.6059,131.48,131.43,7.6083]
[1720186034212,7.6059,131.48,131.43,26.6289]
[1720186034412,0.17,131.49,131.39,6.2777]
[1720186034413,7.6072,131.46,131.39,6.2777]
[1720186034629,0.17,131.47,131.39,6.2777]
[1720186034829,0.17,131.47,131.43,7.6085]
[1720186035222,0.17,131.47,131.44,7.6078]
[1720186035531,7.6044,131.51,131.46,26.6235]
[1720186035908,16.301,131.53,131.46,19.017]
[1720186036108,7.604,131.51,131.46,26.6235]
[1720186037022,16.301,131.53,131.45,7.6072]
[1720186037226,7.6047,131.5,131.45,7.6072]
[1720186037431,0.17,131.49,131.45,7.6072]
[1720186037616,16.301,131.53,131.47,7.6059]
[1720186037825,7.6016,131.55,131.5,7.6043]
[1720186038026,6.35,131.56,131.49,26.6169]
[1720186038027,7.6022,131.54,131.49,26.6169]
[1720186038227,6.35,131.56,131.49,19.0121]
[1720186038414,13.9514,131.56,131.51,26.6134]
[1720186039014,7.6024,131.54,131.49,7.6046]
[1720186039416,7.6019,131.55,131.5,7.6044]
[1720186040112,5.95150999,131.56,131.52,7.6029]
[1720186040311,7.94949222,131.58,131.55,7.6015]
[1720186040542,13.9251,131.59,131.55,7.6015]
[1720186040746,6.3258,131.59,131.53,19.007]
[1720186040942,6.3258,131.59,131.47,28.8719]
[1720186041121,6.3258,131.59,131.55,7.6015]
[1720186041329,13.9252,131.59,131.55,19.0038]
[1720186041545,6.3258,131.59,131.47,6.0219]
[1720186041718,0.17,131.58,131.53,19.007]
[1720186042044,7.7704,131.58,131.53,26.6097]
[1720186042443,7.7704,131.58,131.53,19.007]
[1720186042444,7.6006,131.57,131.53,19.007]
[1720186042738,0.17,131.56,131.53,26.6096]
[1720186043045,0.17,131.56,131.54,7.602]
[1720186043358,13.9254,131.59,131.54,7.602]
[1720186043559,13.9254,131.59,131.53,19.007]
[1720186043560,7.6009,131.57,131.53,19.007]
[1720186043720,0.17,131.56,131.53,26.6094]
[1720186043920,7.6005,131.57,131.53,19.007]
[1720186044221,0.17,131.56,131.53,19.007]
[1720186044422,7.7711,131.56,131.52,7.6032]
[1720186044620,0.17,131.56,131.53,7.6026]
[1720186044852,0.17,131.56,131.52,7.6031]
[1720186045140,7.7712,131.56,131.52,7.6031]
[1720186045343,0.17,131.56,131.5,7.6041]
[1720186045536,7.6021,131.55,131.51,7.6038]
[1720186045850,0.17,131.54,131.5,26.6157]
[1720186046047,0.17,131.54,131.5,19.0113]
[1720186046552,0.17,131.55,131.47,6.0219]
[1720186046721,13.9255,131.59,131.54,7.602]
[1720186046917,6.3258,131.59,131.53,7.6025]
[1720186047223,0.1,131.59,131.56,7.6008]
[1720186047420,0.1,131.59,131.47,28.8719]
[1720186047625,7.6993,131.59,131.54,7.602]
[1720186047836,7.6993,131.59,131.47,28.8719]
[1720186048038,0.1,131.59,131.55,7.6012]
[1720186048347,0.1,131.59,131.47,128.8719]
[1720186048557,0.1,131.59,131.55,7.6014]
[1720186049256,0.1,131.59,131.55,26.6055]
[1720186049938,0.27,131.59,131.55,26.6055]
[1720186050653,0.27,131.59,131.56,7.6009]
[1720186051528,0.27,131.59,131.55,26.6055]
[1720186053544,7.8694,131.59,131.55,19.0041]